fUST/lending_fUST_20250414
["ID","MTS","AMOUNT","RATE_DAILY","PERIOD"]
[357922393,1744565432614,-151.0,0.00025,2]
[357922394,1744565432624,-151.0,0.0002589,2]
[357922397,1744565432634,-420.0,0.00026026,2]
[357922401,1744565432644,-472.962603,0.00026537,2]
[357922402,1744565432654,-196.5129358,0.00026542,2]
[357922403,1744565432664,-902.5681354,0.00026545,2]
[357922404,1744565432674,-12964.7314083,0.00026735,2]
[357922405,1744565432683,-201.2,0.00027,2]
[357922406,1744565432693,-348.5731559,0.0002702,2]
[357922407,1744565432703,-570.02020202,0.0002702,2]
[357922408,1744565432712,-151.0,0.00027378,2]
[357922409,1744565432723,-500.7989221,0.00027399,2]
[357922410,1744565432732,-500.0,0.00027509,2]
[357922411,1744565432743,-500.0,0.0002751,2]
[357922412,1744565432753,-500.0,0.00027535,2]
[357922413,1744565432762,-500.0,0.00027535,2]
[357922414,1744565432772,-500.0,0.00027535,2]
[357922415,1744565432781,-500.0,0.00027535,2]
[357922416,1744565432791,-500.0,0.00027535,2]
[357922417,1744565432800,-226.984135,0.00027599,2]
[357922418,1744565432810,-500.0,0.000276,5]
[357922419,1744565432819,-500.0,0.000276,5]
[357922420,1744565432828,-500.0,0.000276,5]
[357922421,1744565432837,-500.0,0.000276,5]
[357922422,1744565432846,-500.0,0.000276,5]
[357922423,1744565432855,-500.0,0.000276,5]
[357922424,1744565432865,-500.0,0.000276,5]
[357922425,1744565432874,-500.0,0.00027686,2]
[357922426,1744565432884,-500.0,0.00027731,2]
[357922427,1744565432893,-188.18418228,0.00027743,2]
[357922428,1744565432903,-254.89219922,0.00027843,2]
[357922429,1744565432912,-500.0,0.00027843,2]
[357922430,1744565432922,-500.0,0.00027843,2]
[357922431,1744565432931,-500.0,0.00027844,2]
[357922432,1744565432941,-500.0,0.00027844,2]
[357922433,1744565432950,-500.0,0.00027844,2]
[357922434,1744565432960,-500.0,0.00027898,2]
[357922435,1744565432969,-366.85459747,0.000279,7]
[357922436,1744565432979,-500.0,0.00027953,2]
[357922437,1744565432989,-500.0,0.00027964,5]
[357922438,1744565433001,-220.83384307,0.0002798,2]
[357922439,1744565433010,-312.44791667,0.00028,10]
[357922440,1744565433020,-500.0,0.00028007,2]
[357922441,1744565433030,-500.0,0.0002801,2]
[357922442,1744565433041,-500.0,0.00028047,5]
[357922443,1744565433051,-500.0,0.00028047,5]
[357922444,1744565433060,-500.0,0.00028062,2]
[357922445,1744565433071,-500.0,0.00028114,3]
[357922446,1744565433081,-526.97767361,0.00028114,5]
[357922447,1744565433091,-500.0,0.00028114,5]
[357922448,1744565433101,-500.0,0.00028117,2]
[357922449,1744565433111,-500.0,0.00028172,2]
[357922450,1744565433121,-500.0,0.00028227,2]
[357922451,1744565433131,-500.0,0.00028281,2]
[357922452,1744565433140,-366.85459726,0.00028314,7]
[357922453,1744565433150,-500.0,0.00028336,2]
[357922454,1744565433160,-1000.0,0.00028662,3]
[357922455,1744565433170,-7762.76511861,0.0002867,2]
[357922456,1744565433182,-10395.53973815,0.0002867,2]
[357922457,1744565433197,-25699.0003109,0.0002867,2]
[357922496,1744565438629,-193.71763838,0.00023999,2]
[357922498,1744565438641,-500.0,0.00023999,2]
[357922500,1744565438651,-500.0,0.00023999,2]
[357922502,1744565438660,-407.34805235,0.00023999,2]
[357922506,1744565438687,-92.65194765,0.00023999,2]
[357922508,1744565438698,-497.74986075,0.00023999,2]
[357922510,1744565438711,-2.25013925,0.00023999,2]
[357922512,1744565438722,-600.82488995,0.00023999,2]
[357922514,1744565438732,-500.0,0.00023999,2]
[357922516,1744565438742,-500.0,0.00023999,2]
[357922518,1744565438753,-500.0,0.00023999,2]
[357922520,1744565438763,-500.0,0.00023999,2]
[357922523,1744565438773,-500.0,0.00023999,2]
[357922524,1744565438782,-500.0,0.00023999,2]
[357922527,1744565438792,-500.0,0.00023999,2]
[357922529,1744565438802,-500.0,0.00023999,2]
[357922531,1744565438813,-452.9080662,0.00023999,2]
[357922533,1744565438822,-500.0,0.00023999,2]
[357922536,1744565438832,-500.0,0.00023999,2]
[357922539,1744565438842,-500.0,0.00023999,2]
[357922541,1744565438852,-500.0,0.00023999,2]
[357922543,1744565438862,-500.0,0.00023999,2]
[357922545,1744565438872,-500.0,0.00023999,2]
[357922547,1744565438882,-500.0,0.00023999,2]
[357922549,1744565438891,-500.0,0.00023999,2]
[357922551,1744565438903,-613.60219857,0.00023999,2]
[357922553,1744565438913,-500.0,0.00023999,2]
[357922555,1744565438922,-500.0,0.00023999,2]
[357922557,1744565438932,-500.0,0.00023999,2]
[357922559,1744565438941,-500.0,0.00023999,2]
[357922561,1744565438952,-500.0,0.00023999,2]
[357922564,1744565438964,-182.4482429,0.00023999,2]
[357922566,1744565438984,-317.5517571,0.00023999,2]
[357922568,1744565438995,-500.0,0.00023999,2]
[357922570,1744565439006,-184.4482429,0.00023999,2]
[357922572,1744565439019,-315.5517571,0.00023999,2]
[357922574,1744565439036,-159.65407676,0.00024658,2]
[357922576,1744565439055,-2830.60863799,0.0002867,2]
[357922603,1744565440785,-1341.74529893,0.000249,2]
[357922604,1744565440795,-935.31279502,0.0002867,2]
[357922619,1744565443869,-493.68669383,0.0002867,2]
[357922710,1744566637790,-207.34050038,0.000269,2]
[357922711,1744566637801,-312.44791667,0.00027,3]
[357922712,1744566637811,-312.44791667,0.00027,3]
[357922713,1744566637821,-597.33,0.00027,2]
[357922714,1744566637830,-335.0209793,0.0002713,2]
[357922715,1744566637840,-160.0,0.00027202,2]
[357922716,1744566637850,-500.0,0.00027397,5]
[357922717,1744566637861,-505.33835632,0.00027509,2]
[357922718,1744566637871,-500.0,0.00027509,2]
[357922719,1744566637880,-300.0,0.00027898,2]
[357922720,1744566637890,-2217.37930113,0.00027899,2]
[357922721,1744566637910,-3816.05461836,0.00027899,2]
[357922722,1744566637920,-300.0,0.00027899,2]
[357922723,1744566637930,-1090.7517567,0.000279,7]
[357922724,1744566637942,-500.0,0.00028,2]
[357922725,1744566637954,-500.0,0.00028001,2]
[357922727,1744566637964,-1090.75175656,0.00028314,7]
[357922728,1744566637974,-500.0,0.00028369,2]
[357922729,1744566637984,-1485.68857397,0.00028469,2]
[357922730,1744566637995,-500.0,0.00028478,2]
[357922731,1744566638005,-500.0,0.00028558,2]
[357922732,1744566638014,-500.0,0.00028558,2]
[357922733,1744566638025,-500.0,0.00028558,2]
[357922734,1744566638035,-529.73350466,0.00028558,2]
[357922735,1744566638045,-500.0,0.00028558,2]
[357922736,1744566638055,-500.0,0.00028558,2]
[357922737,1744566638064,-500.0,0.00028558,2]
[357922738,1744566638074,-500.0,0.00028558,2]
[357922739,1744566638083,-192.65744762,0.00028558,2]
[357922740,1744566638093,-500.0,0.00028558,2]
[357922741,1744566638103,-500.0,0.00028558,2]
[357922742,1744566638113,-500.0,0.00028558,2]
[357922743,1744566638123,-500.0,0.00028558,2]
[357922744,1744566638133,-500.0,0.00028558,2]
[357922745,1744566638142,-500.0,0.00028558,2]
[357922746,1744566638152,-500.0,0.00028558,2]
[357922747,1744566638161,-500.0,0.00028558,2]
[357922748,1744566638171,-500.0,0.00028558,2]
[357922749,1744566638180,-500.0,0.00028558,2]
[357922750,1744566638190,-500.0,0.00028558,2]
[357922751,1744566638200,-500.0,0.00028558,2]
[357922752,1744566638209,-500.0,0.00028558,2]
[357922753,1744566638220,-500.0,0.00028558,2]
[357922754,1744566638230,-489.22989138,0.00028558,2]
[357922755,1744566638241,-644.54342435,0.00028558,2]
[357922756,1744566638251,-500.0,0.00028558,2]
[357922757,1744566638262,-500.0,0.00028558,2]
[357922758,1744566638272,-500.0,0.00028558,2]
[357922759,1744566638284,-500.0,0.00028558,2]
[357922760,1744566638293,-500.0,0.00028558,2]
[357922761,1744566638302,-500.0,0.00028558,2]
[357922762,1744566638312,-500.0,0.00028558,2]
[357922763,1744566638322,-500.0,0.00028558,2]
[357922764,1744566638332,-500.0,0.00028558,2]
[357922765,1744566638342,-500.0,0.00028558,2]
[357922766,1744566638352,-158.88889451,0.00028559,2]
[357922767,1744566638363,-500.0,0.0002856,2]
[357922768,1744566638373,-500.0,0.0002856,2]
[357922769,1744566638383,-46599.9143405,0.0002856,2]
[357922770,1744566638392,-500.0,0.0002857,2]
[357922771,1744566638403,-9079.15242838,0.0002857,2]
[357922772,1744566638412,-234.55963966,0.0002857,3]
[357922773,1744566638422,-370000.0,0.0002857,2]
[357922774,1744566638432,-13314.2612401,0.0002866,2]
[357922775,1744566638442,-500.0,0.00028669,2]
[357922776,1744566638452,-1631.601229,0.0002867,7]
[357922777,1744566638462,-1631.601229,0.0002867,7]
[357922778,1744566638472,-151.0,0.0002867,7]
[357922779,1744566638482,-151.0,0.0002867,7]
[357922780,1744566638492,-151.0,0.0002867,7]
[357922781,1744566638502,-151.0,0.0002867,7]
[357922782,1744566638512,-151.0,0.0002867,7]
[357922783,1744566638522,-151.0,0.0002867,7]
[357922784,1744566638535,-151.0,0.0002867,7]
[357922785,1744566638544,-156.771462,0.0002867,7]
[357922786,1744566638553,-151.0,0.0002867,7]
[357922787,1744566638560,-190.730731,0.0002867,7]
[357922788,1744566638568,-315.812447,0.0002867,7]
[357922789,1744566638575,-315.812447,0.0002867,7]
[357922790,1744566638583,-151.0,0.0002867,7]
[357922791,1744566638592,-151.0,0.0002867,7]
[357922792,1744566638599,-162.271528,0.0002867,7]
[357922793,1744566638606,-151.0,0.0002867,7]
[357922794,1744566638615,-162.271528,0.0002867,7]
[357922795,1744566638626,-151.0,0.0002867,7]
[357922796,1744566638636,-151.0,0.0002867,7]
[357922797,1744566638647,-216.566206,0.0002867,7]
[357922798,1744566638658,-259.027692,0.0002867,7]
[357922799,1744566638668,-216.566206,0.0002867,7]
[357922800,1744566638678,-151.0,0.0002867,7]
[357922801,1744566638689,-151.0,0.0002867,7]
[357922802,1744566638704,-167.77,0.00028679,2]
[357922803,1744566638714,-160.129618,0.0002868,7]
[357922804,1744566638724,-151.0,0.0002868,7]
[357922805,1744566638734,-240.200754,0.0002868,7]
[357922806,1744566638744,-253.417297,0.0002868,7]
[357922807,1744566638754,-668.651867,0.0002868,2]
[357922808,1744566638764,-668.651867,0.0002868,2]
[357922809,1744566638775,-151.0,0.0002868,7]
[357922810,1744566638786,-151.0,0.0002868,7]
[357922811,1744566638797,-198.013688,0.0002868,7]
[357922812,1744566638807,-151.0,0.0002868,2]
[357922813,1744566638817,-198.013688,0.0002868,7]
[357922814,1744566638828,-218.916203,0.0002868,2]
[357922815,1744566638838,-151.0,0.0002868,7]
[357922816,1744566638851,-152.683725,0.0002868,7]
[357922817,1744566638861,-151.0,0.0002868,7]
[357922818,1744566638871,-151.0,0.0002868,7]
[357922819,1744566638881,-1090.75175656,0.00028728,8]
[357922820,1744566638891,-500.0,0.00028836,2]
[357922821,1744566638902,-183.62427088,0.00028889,2]
[357922822,1744566638917,-176.55361282,0.00028889,2]
[357922823,1744566638927,-358.0,0.0002889,7]
[357922824,1744566638937,-358.0,0.0002889,7]
[357922825,1744566638947,-358.0,0.0002889,7]
[357922826,1744566638957,-319.0,0.0002889,7]
[357922827,1744566638967,-319.0,0.0002889,7]
[357922828,1744566638977,-358.0,0.0002889,7]
[357922829,1744566638987,-319.0,0.0002889,7]
[357922830,1744566638997,-358.0,0.0002889,7]
[357922831,1744566639008,-358.0,0.0002889,7]
[357922832,1744566639019,-319.0,0.0002889,7]
[357922833,1744566639031,-358.0,0.0002889,7]
[357922834,1744566639042,-319.0,0.0002889,7]
[357922835,1744566639052,-358.0,0.0002889,7]
[357922836,1744566639062,-319.0,0.0002889,7]
[357922837,1744566639073,-358.0,0.0002889,7]
[357922838,1744566639084,-319.0,0.0002889,7]
[357922839,1744566639094,-358.0,0.0002889,7]
[357922840,1744566639104,-319.0,0.0002889,7]
[357922841,1744566639114,-358.0,0.0002889,7]
[357922842,1744566639127,-319.0,0.0002889,7]
[357922843,1744566639138,-319.0,0.0002889,7]
[357922844,1744566639148,-358.0,0.0002889,7]
[357922845,1744566639157,-319.0,0.0002889,7]
[357922846,1744566639167,-358.0,0.0002889,7]
[357922847,1744566639177,-319.0,0.0002889,7]
[357922848,1744566639187,-358.0,0.0002889,7]
[357922849,1744566639196,-319.0,0.0002889,7]
[357922850,1744566639206,-358.0,0.0002889,7]
[357922851,1744566639216,-358.0,0.0002889,7]
[357922852,1744566639225,-358.0,0.0002889,7]
[357922853,1744566639235,-319.0,0.0002889,7]
[357922854,1744566639245,-358.0,0.0002889,7]
[357922855,1744566639254,-319.0,0.0002889,7]
[357922856,1744566639264,-358.0,0.0002889,7]
[357922857,1744566639274,-319.0,0.0002889,7]
[357922858,1744566639284,-358.0,0.0002889,7]
[357922859,1744566639295,-319.0,0.0002889,7]
[357922860,1744566639305,-358.0,0.0002889,7]
[357922861,1744566639315,-319.0,0.0002889,7]
[357922862,1744566639325,-358.0,0.0002889,7]
[357922863,1744566639334,-319.0,0.0002889,7]
[357922864,1744566639344,-358.0,0.0002889,7]
[357922865,1744566639355,-411.0938451,0.0002889,7]
[357922866,1744566639365,-319.0,0.0002889,7]
[357922868,1744566639375,-319.0,0.0002889,7]
[357922870,1744566639384,-319.0,0.0002889,7]
[357922872,1744566639394,-319.0,0.0002889,7]
[357922874,1744566639403,-319.0,0.0002889,7]
[357922875,1744566639413,-431.67920487,0.0002889,7]
[357922876,1744566639423,-198.013688,0.0002889,7]
[357922877,1744566639432,-198.013688,0.0002889,7]
[357922878,1744566639443,-151.0,0.0002889,7]
[357922879,1744566639452,-151.0,0.0002889,7]
[357922880,1744566639462,-1631.601229,0.0002889,7]
[357922881,1744566639472,-1631.601229,0.0002889,7]
[357922882,1744566639481,-151.0,0.0002889,7]
[357922883,1744566639491,-151.0,0.0002889,7]
[357922884,1744566639501,-151.0,0.0002889,7]
[357922885,1744566639511,-151.0,0.0002889,7]
[357922887,1744566639520,-315.812447,0.0002889,7]
[357922889,1744566639531,-315.812447,0.0002889,7]
[357922891,1744566639540,-151.0,0.0002889,7]
[357922893,1744566639550,-162.803838,0.0002889,7]
[357922895,1744566639559,-162.271528,0.0002889,7]
[357922897,1744566639569,-151.0,0.0002889,7]
[357922899,1744566639578,-162.271528,0.0002889,7]
[357922900,1744566639587,-151.0,0.0002889,7]
[357922901,1744566639597,-151.28539,0.0002889,7]
[357922902,1744566639606,-216.566206,0.0002889,7]
[357922903,1744566639615,-216.566206,0.0002889,7]
[357922905,1744566639625,-151.0,0.0002889,7]
[357922907,1744566639634,-151.0,0.0002889,7]
[357922908,1744566639644,-208.740892,0.00028962,7]
[357922910,1744566639653,-162.271528,0.00028962,7]
[357922911,1744566639663,-162.271528,0.00028962,7]
[357922912,1744566639672,-151.0,0.00028962,7]
[357922914,1744566639682,-216.566206,0.00028962,7]
[357922915,1744566639691,-216.566206,0.00028962,7]
[357922918,1744566639700,-151.559587,0.00028962,7]
[357922919,1744566639710,-151.0,0.00028962,7]
[357922922,1744566639719,-6657.13062007,0.00028963,2]
[357922924,1744566639728,-550.64139599,0.00028973,5]
[357922926,1744566639738,-500.0,0.00028973,5]
[357922928,1744566639747,-500.0,0.00028973,3]
[357922930,1744566639756,-500.0,0.00028973,5]
[357922931,1744566639765,-503.09758704,0.00028973,5]
[357922933,1744566639776,-500.0,0.00028973,5]
[357922936,1744566639786,-327.52066194,0.00028973,5]
[357922938,1744566639795,-500.0,0.00028973,5]
[357922940,1744566639804,-500.0,0.00028973,2]
[357922942,1744566639814,-501.29413901,0.00028973,5]
[357922944,1744566639824,-500.0,0.00028973,5]
[357922946,1744566639833,-270.47526877,0.00028973,5]
[357922963,1744566640019,-500.0,0.00028973,5]
[357922965,1744566640033,-500.0,0.00028973,5]
[357922967,1744566640044,-500.0,0.00028973,5]
[357922969,1744566640054,-500.0,0.00028973,5]
[357922970,1744566640065,-500.0,0.00028973,5]
[357922971,1744566640075,-502.2937685,0.00028973,5]
[357922972,1744566640085,-152.89008231,0.00028973,5]
[357922973,1744566640096,-408.05507203,0.00028973,2]
[357922974,1744566640107,-1631.601229,0.00028973,7]
[357922975,1744566640117,-1631.601229,0.00028973,7]
[357922976,1744566640127,-151.0,0.00028973,7]
[357922977,1744566640137,-151.0,0.00028973,7]
[357922978,1744566640146,-151.0,0.00028973,7]
[357922979,1744566640156,-215.982859,0.00028973,7]
[357922980,1744566640166,-315.812447,0.00028973,7]
[357922981,1744566640175,-315.812447,0.00028973,7]
[357922982,1744566640185,-184.541,0.0002899,21]
[357922983,1744566640195,-151.0,0.0002899,7]
[357922984,1744566640204,-213.249499,0.0002899,7]
[357922985,1744566640214,-198.013688,0.0002899,7]
[357922986,1744566640224,-151.0,0.0002899,2]
[357922987,1744566640233,-198.013688,0.0002899,7]
[357922988,1744566640244,-151.0,0.0002899,7]
[357922989,1744566640254,-151.0,0.0002899,7]
[357922990,1744566640264,-151.0,0.0002899,7]
[357922991,1744566640274,-59914.1755806,0.0002899,2]
[357922992,1744566640288,-162.271528,0.0002899,7]
[357922993,1744566640298,-162.271528,0.0002899,7]
[357922994,1744566640308,-216.566206,0.0002899,7]
[357922995,1744566640318,-216.566206,0.0002899,7]
[357922996,1744566640327,-151.0,0.0002899,7]
[357922997,1744566640337,-1035.49354,0.00028999,4]
[357922998,1744566640347,-25408.59143623,0.00029,7]
[357922999,1744566640357,-25408.59143623,0.00029,7]
[357923000,1744566640368,-74013.56373536,0.00029,7]
[357923001,1744566640377,-56338.01663702,0.00029,7]
[357923002,1744566640392,-17675.54709834,0.00029,7]
[357923003,1744566640402,-151.0,0.00029,7]
[357923004,1744566640412,-151.0,0.00029,7]
[357923005,1744566640422,-151.0,0.00029,7]
[357923006,1744566640431,-151.0,0.00029,7]
[357923007,1744566640441,-183.521507,0.00029,7]
[357923008,1744566640451,-183.521507,0.00029,7]
[357923009,1744566640461,-183.521507,0.00029,7]
[357923010,1744566640471,-183.521507,0.00029,7]
[357923011,1744566640481,-425.587438,0.00029,7]
[357923012,1744566640491,-425.587438,0.00029,7]
[357923013,1744566640501,-425.587438,0.00029,7]
[357923014,1744566640511,-965.18967719,0.00029,7]
[357923015,1744566640522,-965.18967719,0.00029,7]
[357923016,1744566640541,-668.651867,0.00029,2]
[357923017,1744566640560,-355.51351167,0.00029,2]
[357923018,1744566640595,-183.50014526,0.00028889,2]
[357923019,1744566640607,-313.13835533,0.00029,2]
[357923020,1744566640616,-668.651867,0.00029,2]
[357923021,1744566640627,-668.651867,0.00029,2]
[357923022,1744566640637,-668.651867,0.00029,2]
[357923023,1744566640647,-668.651867,0.00029,2]
[357923024,1744566640658,-668.651867,0.00029,2]
[357923025,1744566640667,-668.651867,0.00029,2]
[357923026,1744566640677,-151.0,0.00029,7]
[357923027,1744566640687,-151.0,0.00029,7]
[357923028,1744566640698,-151.0,0.00029,7]
[357923029,1744566640707,-151.0,0.00029,7]
[357923030,1744566640719,-27465.07761657,0.00029,7]
[357923031,1744566640729,-27465.07761657,0.00029,7]
[357923032,1744566640739,-198.013688,0.00029,7]
[357923033,1744566640749,-198.013688,0.00029,7]
[357923034,1744566640759,-198.013688,0.00029,7]
[357923035,1744566640769,-198.013688,0.00029,7]
[357923036,1744566640781,-198.013688,0.00029,7]
[357923037,1744566640792,-198.013688,0.00029,7]
[357923038,1744566640802,-151.0,0.00029,2]
[357923039,1744566640812,-151.0,0.00029,2]
[357923040,1744566640822,-151.0,0.00029,2]
[357923041,1744566640832,-151.0,0.00029,2]
[357923042,1744566640842,-198.013688,0.00029,7]
[357923043,1744566640851,-198.013688,0.00029,7]
[357923044,1744566640861,-198.013688,0.00029,7]
[357923045,1744566640871,-198.013688,0.00029,7]
[357923046,1744566640882,-198.013688,0.00029,7]
[357923047,1744566640892,-198.013688,0.00029,7]
[357923048,1744566640904,-151.0,0.00029,7]
[357923049,1744566640917,-151.0,0.00029,7]
[357923050,1744566640927,-151.0,0.00029,7]
[357923051,1744566640938,-151.0,0.00029,7]
[357923052,1744566640948,-151.0,0.00029,7]
[357923053,1744566640959,-151.0,0.00029,7]
[357923054,1744566640970,-151.0,0.00029,7]
[357923055,1744566640980,-151.0,0.00029,7]
[357923056,1744566640990,-151.0,0.00029,7]
[357923057,1744566641001,-151.0,0.00029,7]
[357923058,1744566641012,-151.0,0.00029,7]
[357923059,1744566641022,-1631.601229,0.00029,7]
[357923060,1744566641035,-1631.601229,0.00029,7]
[357923061,1744566641044,-1631.601229,0.00029,7]
[357923062,1744566641053,-1631.601229,0.00029,7]
[357923063,1744566641064,-1631.601229,0.00029,7]
[357923064,1744566641074,-1631.601229,0.00029,7]
[357923065,1744566641085,-1631.601229,0.00029,7]
[357923066,1744566641097,-1631.601229,0.00029,7]
[357923067,1744566641109,-1631.601229,0.00029,7]
[357923068,1744566641120,-1631.601229,0.00029,7]
[357923069,1744566641131,-1631.601229,0.00029,7]
[357923070,1744566641142,-151.0,0.00029,7]
[357923071,1744566641151,-151.0,0.00029,7]
[357923072,1744566641162,-1631.601229,0.00029,7]
[357923073,1744566641171,-151.0,0.00029,7]
[357923074,1744566641180,-151.0,0.00029,7]
[357923075,1744566641190,-151.0,0.00029,7]
[357923076,1744566641201,-151.0,0.00029,7]
[357923077,1744566641212,-163.808024,0.00029,7]
[357923078,1744566641223,-72215.27932227,0.00029,7]
[357923079,1744566641233,-72215.27932227,0.00029,7]
[357923080,1744566641244,-151.0,0.00029,7]
[357923081,1744566641254,-151.0,0.00029,7]
[357923082,1744566641265,-151.0,0.00029,7]
[357923083,1744566641277,-151.0,0.00029,7]
[357923084,1744566641291,-315.812447,0.00029,7]
[357923085,1744566641303,-315.812447,0.00029,7]
[357923086,1744566641312,-315.812447,0.00029,7]
[357923087,1744566641323,-315.812447,0.00029,7]
[357923088,1744566641333,-315.812447,0.00029,7]
[357923089,1744566641343,-315.812447,0.00029,7]
[357923090,1744566641353,-315.812447,0.00029,7]
[357923091,1744566641363,-315.812447,0.00029,7]
[357923092,1744566641373,-315.812447,0.00029,7]
[357923093,1744566641383,-315.812447,0.00029,7]
[357923094,1744566641394,-315.812447,0.00029,7]
[357923095,1744566641405,-315.812447,0.00029,7]
[357923096,1744566641415,-162.271528,0.00029,7]
[357923097,1744566641425,-162.271528,0.00029,7]
[357923098,1744566641435,-162.271528,0.00029,7]
[357923099,1744566641445,-162.271528,0.00029,7]
[357923100,1744566641455,-162.271528,0.00029,7]
[357923101,1744566641465,-162.271528,0.00029,7]
[357923102,1744566641475,-162.271528,0.00029,7]
[357923103,1744566641484,-162.271528,0.00029,7]
[357923104,1744566641495,-162.271528,0.00029,7]
[357923105,1744566641505,-162.271528,0.00029,7]
[357923106,1744566641515,-162.271528,0.00029,7]
[357923107,1744566641525,-162.27152,0.00029,7]
[357923108,1744566641537,-216.566206,0.00029,7]
[357923109,1744566641547,-216.566206,0.00029,7]
[357923110,1744566641557,-216.566206,0.00029,7]
[357923111,1744566641568,-216.566206,0.00029,7]
[357923112,1744566641578,-216.566206,0.00029,7]
[357923113,1744566641588,-216.566206,0.00029,7]
[357923114,1744566641598,-216.566206,0.00029,7]
[357923115,1744566641607,-216.566206,0.00029,7]
[357923116,1744566641617,-216.566206,0.00029,7]
[357923117,1744566641627,-216.566206,0.00029,7]
[357923118,1744566641637,-216.566206,0.00029,7]
[357923119,1744566641647,-216.566209,0.00029,7]
[357923120,1744566641657,-151.0,0.00029,7]
[357923121,1744566641667,-151.0,0.00029,7]
[357923122,1744566641681,-151.0,0.00029,7]
[357923123,1744566641691,-151.0,0.00029,7]
[357923124,1744566641701,-151.0,0.00029,7]
[357923125,1744566641711,-161.627244,0.00029,7]
[357923126,1744566641721,-1090.75175656,0.00029141,8]
[357923127,1744566641731,-500.0,0.00029157,2]
[357923128,1744566641741,-1000.0,0.00029521,3]
[357923129,1744566641751,-1090.75175656,0.00029555,8]
[357923130,1744566641761,-500.0,0.00029698,2]
[357923131,1744566641770,-188.0,0.000298,2]
[357923132,1744566641784,-188.0,0.000298,10]
[357923133,1744566641793,-1090.75175656,0.00029969,9]
[357923134,1744566641803,-6657.13062007,0.0002998,2]
[357923135,1744566641813,-151.0,0.0002999,7]
[357923136,1744566641823,-183.521507,0.0002999,7]
[357923137,1744566641832,-183.521507,0.0002999,7]
[357923138,1744566641842,-425.587438,0.0002999,7]
[357923139,1744566641852,-425.587438,0.0002999,7]
[357923140,1744566641862,-668.651867,0.0002999,2]
[357923141,1744566641872,-668.651867,0.0002999,2]
[357923142,1744566641882,-668.651867,0.0002999,2]
[357923143,1744566641891,-668.651867,0.0002999,2]
[357923144,1744566641901,-151.0,0.0002999,7]
[357923145,1744566641911,-151.0,0.0002999,7]
[357923146,1744566641921,-198.013688,0.0002999,7]
[357923147,1744566641934,-151.0,0.0002999,2]
[357923148,1744566641944,-151.0,0.0002999,2]
[357923149,1744566641954,-198.013696,0.0002999,7]
[357923150,1744566641963,-1631.601229,0.0002999,7]
[357923151,1744566641973,-1631.601235,0.0002999,7]
[357923152,1744566641983,-151.0,0.0002999,7]
[357923153,1744566641993,-315.812447,0.0002999,7]
[357923154,1744566642003,-315.812445,0.0002999,7]
[357923155,1744566642014,-104133.41468674,0.0003,2]
[357923156,1744566642090,-16857.16520675,0.0003,2]
[357923162,1744566642939,-9569.38816882,0.0003,2]
[357923163,1744566643047,-305.21753407,0.0003,2]
[357923172,1744566645792,-151.0,0.0002867,7]